Workbook

Sheet 은평구총괄
B1: 장애인 유형별, 등급별 등록 현황 (2018. 12월 말 기준)
B3: 서울특별시 은평구 | V3: (단위 : 명)
B5: 자치구 | C5: 장애유형 | D5: 합계 | G5: 1급 | J5: 2급 | M5: 3급 | P5: 4급 | S5: 5급 | V5: 6급
D6: 계 | E6: 남 | F6: 여 | G6: 계 | H6: 남 | I6: 여 | J6: 계 | K6: 남 | L6: 여 | M6: 계 | N6: 남 | O6: 여 | P6: 계 | Q6: 남 | R6: 여 | S6: 계 | T6: 남 | U6: 여 | V6: 계 | W6: 남 | X6: 여
B7: 은평구 | C7: 합 계 | D7: =SUM(G7,J7,M7,P7,S7,V7) -> 21531 | E7: =SUM(H7,K7,N7,Q7,T7,W7) -> 12631 | F7: =SUM(I7,L7,O7,R7,U7,X7) -> 8900 | G7: =SUM(G8:G22) -> 1873 | H7: =SUM(H8:H22) -> 1197 | I7: =SUM(I8:I22) -> 676 | J7: 2978 | K7: =SUM(K8:K22) -> 1866 | L7: =SUM(L8:L22) -> 1112 | M7: 3499 | N7: =SUM(N8:N22) -> 2177 | O7: =SUM(O8:O22) -> 1322 | P7: 3140 | Q7: =SUM(Q8:Q22) -> 1631 | R7: =SUM(R8:R22) -> 1509 | S7: 4554 | T7: 2406 | U7: 2148 | V7: 5487 | W7: 3354 | X7: 2133
C8: 지체 | D8: 9280 | E8: =SUM(H8,K8,N8,Q8,T8,W8) -> 5134 | F8: =SUM(I8,L8,O8,R8,U8,X8) -> 4146 | G8: 217 | H8: 147 | I8: 70 | J8: 402 | K8: 257 | L8: 145 | M8: 950 | N8: 622 | O8: 328 | P8: 1797 | Q8: 858 | R8: 939 | S8: 2774 | T8: 1378 | U8: 1396 | V8: 3140 | W8: 1872 | X8: 1268
C9: 시각 | D9: 2354 | E9: 1436 | F9: 918 | G9: 311 | H9: 168 | I9: 143 | J9: 58 | K9: 30 | L9: 28 | M9: 106 | N9: 57 | O9: 49 | P9: 94 | Q9: 52 | R9: 42 | S9: 181 | T9: 104 | U9: 77 | V9: 1604 | W9: 1025 | X9: 579
C10: 청각 | D10: 2959 | E10: 1615 | F10: 1344 | G10: 44 | H10: 23 | I10: 21 | J10: 360 | K10: 169 | L10: 191 | M10: 355 | N10: 201 | O10: 154 | P10: 740 | Q10: 413 | R10: 327 | S10: 998 | T10: 555 | U10: 443 | V10: 462 | W10: 254 | X10: 208
C11: 언어 | D11: 179 | E11: 133 | F11: 46 | G11: 0 | H11: 0 | I11: 0 | J11: 23 | K11: 18 | L11: 5 | M11: 68 | N11: 53 | O11: 15 | P11: 88 | Q11: 62 | R11: 26 | S11: 0 | T11: 0 | U11: 0 | V11: 0 | W11: 0 | X11: 0
C12: 지적 | D12: 1736 | E12: 1149 | F12: 587 | G12: 561 | H12: 379 | I12: 182 | J12: 540 | K12: 358 | L12: 182 | M12: 635 | N12: 412 | O12: 223 | P12: 0 | Q12: 0 | R12: 0 | S12: 0 | T12: 0 | U12: 0 | V12: 0 | W12: 0 | X12: 0
C13: 뇌병변 | D13: 2234 | E13: 1367 | F13: 867 | G13: 549 | H13: 343 | I13: 206 | J13: 434 | K13: 237 | L13: 197 | M13: 452 | N13: 276 | O13: 176 | P13: 259 | Q13: 147 | R13: 112 | S13: 259 | T13: 161 | U13: 98 | V13: 281 | W13: 203 | X13: 78
C14: 자폐성 | D14: 290 | E14: 251 | F14: 39 | G14: 87 | H14: 67 | I14: 20 | J14: 141 | K14: 126 | L14: 15 | M14: 62 | N14: 58 | O14: 4 | P14: 0 | Q14: 0 | R14: 0 | S14: 0 | T14: 0 | U14: 0 | V14: 0 | W14: 0 | X14: 0
C15: 정신 | D15: 1125 | E15: 703 | F15: 422 | G15: 31 | H15: 26 | I15: 5 | J15: 367 | K15: 276 | L15: 91 | M15: 727 | N15: 401 | O15: 326 | P15: 0 | Q15: 0 | R15: 0 | S15: 0 | T15: 0 | U15: 0 | V15: 0 | W15: 0 | X15: 0
C16: 신장 | D16: 806 | E16: 479 | F16: 327 | G16: 52 | H16: 33 | I16: 19 | J16: 597 | K16: 357 | L16: 240 | M16: 0 | N16: 0 | O16: 0 | P16: 5 | Q16: 4 | R16: 1 | S16: 152 | T16: 85 | U16: 67 | V16: 0 | W16: 0 | X16: 0
C17: 심장 | D17: 48 | E17: 26 | F17: 22 | G17: 0 | H17: 0 | I17: 0 | J17: 9 | K17: 2 | L17: 7 | M17: 30 | N17: 17 | O17: 13 | P17: 1 | Q17: 1 | R17: 0 | S17: 8 | T17: 6 | U17: 2 | V17: 0 | W17: 0 | X17: 0
C18: 호흡기 | D18: 136 | E18: 98 | F18: 38 | G18: 17 | H18: 10 | I18: 7 | J18: 40 | K18: 30 | L18: 10 | M18: 76 | N18: 58 | O18: 18 | P18: 1 | Q18: 0 | R18: 1 | S18: 2 | T18: 0 | U18: 2 | V18: 0 | W18: 0 | X18: 0
C19: 간 | D19: 132 | E19: 94 | F19: 38 | G19: 4 | H19: 1 | I19: 3 | J19: 1 | K19: 1 | L19: 0 | M19: 5 | N19: 3 | O19: 2 | P19: 4 | Q19: 4 | R19: 0 | S19: 118 | T19: 85 | U19: 33 | V19: 0 | W19: 0 | X19: 0
C20: 안면 | D20: 25 | E20: 15 | F20: 10 | G20: 0 | H20: 0 | I20: 0 | J20: 2 | K20: 2 | L20: 0 | M20: 6 | N20: 3 | O20: 3 | P20: 17 | Q20: 10 | R20: 7 | S20: 0 | T20: 0 | U20: 0 | V20: 0 | W20: 0 | X20: 0
C21: 장루.요루 | D21: 165 | E21: 96 | F21: 69 | G21: 0 | H21: 0 | I21: 0 | J21: 3 | K21: 3 | L21: 0 | M21: 20 | N21: 10 | O21: 10 | P21: 95 | Q21: 58 | R21: 37 | S21: 47 | T21: 25 | U21: 22 | V21: 0 | W21: 0 | X21: 0
C22: 뇌전증 | D22: 62 | E22: 35 | F22: 27 | G22: 0 | H22: 0 | I22: 0 | J22: 1 | K22: 0 | L22: 1 | M22: 7 | N22: 6 | O22: 1 | P22: 39 | Q22: 22 | R22: 17 | S22: 15 | T22: 7 | U22: 8 | V22: 0 | W22: 0 | X22: 0

Sheet 유형별
B1: 은평구 동별 장애인현황(유형별)
AY5: (단위 : 명)
B6: 자치구 | C6: 동 | D6: 합계 | G6: 지체 | J6: 시각 | M6: 청각 | P6: 언어 | S6: 지적 | V6: 뇌병변 | Y6: 자폐성 | AB6: 정신장애 | AE6: 신장장애 | AH6: 심장장애 | AK6: 호흡기 | AN6: 간 | AQ6: 안면 | AT6: 장루,요루 | AW6: 뇌전증
D7: 계 | E7: 남자 | F7: 여자 | G7: 계 | H7: 남자 | I7: 여자 | J7: 계 | K7: 남자 | L7: 여자 | M7: 계 | N7: 남자 | O7: 여자 | P7: 계 | Q7: 남자 | R7: 여자 | S7: 계 | T7: 남자 | U7: 여자 | V7: 계 | W7: 남자 | X7: 여자 | Y7: 계 | Z7: 남자 | AA7: 여자 | AB7: 계 | AC7: 남자 | AD7: 여자 | AE7: 계 | AF7: 남자 | AG7: 여자 | AH7: 계 | AI7: 남자 | AJ7: 여자 | AK7: 계 | AL7: 남자 | AM7: 여자 | AN7: 계 | AO7: 남자 | AP7: 여자 | AQ7: 계 | AR7: 남자 | AS7: 여자 | AT7: 계 | AU7: 남자 | AV7: 여자 | AW7: 계 | AX7: 남자 | AY7: 여자
B8: 은평구 | C8: 합 계 | D8: =SUM(G8,J8,M8,P8,S8,V8,Y8,AB8,AE8,AH8,AK8,AN8,AQ8,AT8,AW8) -> 21531 | E8: =SUM(H8,K8,N8,Q8,T8,W8,Z8,AC8,AF8,AI8,AL8,AO8,AR8,AU8,AX8) -> 12631 | F8: =SUM(I8,L8,O8,R8,U8,X8,AA8,AD8,AG8,AJ8,AM8,AP8,AS8,AV8,AY8) -> 8900 | G8: =SUM(G9:G24) -> 9280 | H8: =SUM(H9:H24) -> 5134 | I8: 4146 | J8: 2354 | K8: 1436 | L8: 918 | M8: 2959 | N8: 1615 | O8: 1344 | P8: 179 | Q8: 133 | R8: 46 | S8: 1736 | T8: 1149 | U8: 587 | V8: 2234 | W8: 1367 | X8: 867 | Y8: 290 | Z8: 251 | AA8: 39 | AB8: 1125 | AC8: 703 | AD8: 422 | AE8: 806 | AF8: 479 | AG8: 327 | AH8: 48 | AI8: 26 | AJ8: 22 | AK8: 136 | AL8: 98 | AM8: 38 | AN8: 132 | AO8: 94 | AP8: 38 | AQ8: 25 | AR8: 15 | AS8: 10 | AT8: 165 | AU8: 96 | AV8: 69 | AW8: 62 | AX8: 35 | AY8: 27
C9: 녹번동 | D9: =SUM(G9,J9,M9,P9,S9,V9,Y9,AB9,AE9,AH9,AK9,AN9,AQ9,AT9,AW9) -> 1528 | E9: =SUM(H9,K9,N9,Q9,T9,W9,Z9,AC9,AF9,AI9,AL9,AO9,AR9,AU9,AX9) -> 889 | F9: =SUM(I9,L9,O9,R9,U9,X9,AA9,AD9,AG9,AJ9,AM9,AP9,AS9,AV9,AY9) -> 639 | G9: 702 | H9: 384 | I9: 318 | J9: 169 | K9: 116 | L9: 53 | M9: 234 | N9: 122 | O9: 112 | P9: 20 | Q9: 12 | R9: 8 | S9: 87 | T9: 62 | U9: 25 | V9: 157 | W9: 90 | X9: 67 | Y9: 16 | Z9: 13 | AA9: 3 | AB9: 47 | AC9: 26 | AD9: 21 | AE9: 60 | AF9: 39 | AG9: 21 | AH9: 1 | AI9: 0 | AJ9: 1 | AK9: 4 | AL9: 2 | AM9: 2 | AN9: 11 | AO9: 8 | AP9: 3 | AQ9: 2 | AR9: 2 | AS9: 0 | AT9: 15 | AU9: 11 | AV9: 4 | AW9: 3 | AX9: 2 | AY9: 1
C10: 불광1동 | D10: 1682 | E10: 934 | F10: 748 | G10: 706 | H10: 372 | I10: 334 | J10: 218 | K10: 126 | L10: 92 | M10: 259 | N10: 145 | O10: 114 | P10: 14 | Q10: 10 | R10: 4 | S10: 93 | T10: 52 | U10: 41 | V10: 179 | W10: 105 | X10: 74 | Y10: 19 | Z10: 18 | AA10: 1 | AB10: 77 | AC10: 39 | AD10: 38 | AE10: 73 | AF10: 43 | AG10: 30 | AH10: 3 | AI10: 3 | AJ10: 0 | AK10: 10 | AL10: 8 | AM10: 2 | AN10: 14 | AO10: 6 | AP10: 8 | AQ10: 1 | AR10: 1 | AS10: 0 | AT10: 14 | AU10: 5 | AV10: 9 | AW10: 2 | AX10: 1 | AY10: 1
C11: 불광2동 | D11: =SUM(G11,J11,M11,P11,S11,V11,Y11,AB11,AE11,AH11,AK11,AN11,AQ11,AT11,AW11) -> 1492 | E11: 864 | F11: 628 | G11: 642 | H11: 365 | I11: 277 | J11: 193 | K11: 118 | L11: 75 | M11: 232 | N11: 126 | O11: 106 | P11: 14 | Q11: 10 | R11: 4 | S11: 115 | T11: 72 | U11: 43 | V11: 137 | W11: 79 | X11: 58 | Y11: 22 | Z11: 21 | AA11: 1 | AB11: 54 | AC11: 23 | AD11: 31 | AE11: 46 | AF11: 28 | AG11: 18 | AH11: 5 | AI11: 3 | AJ11: 2 | AK11: 5 | AL11: 4 | AM11: 1 | AN11: 7 | AO11: 5 | AP11: 2 | AQ11: 2 | AR11: 1 | AS11: 1 | AT11: 7 | AU11: 2 | AV11: 5 | AW11: 11 | AX11: 7 | AY11: 4
C12: 갈현1동 | D12: 1115 | E12: 639 | F12: 476 | G12: 483 | H12: 274 | I12: 209 | J12: 128 | K12: 80 | L12: 48 | M12: 147 | N12: 79 | O12: 68 | P12: 8 | Q12: 5 | R12: 3 | S12: 76 | T12: 44 | U12: 32 | V12: 113 | W12: 71 | X12: 42 | Y12: 9 | Z12: 8 | AA12: 1 | AB12: 74 | AC12: 36 | AD12: 38 | AE12: 52 | AF12: 23 | AG12: 29 | AH12: 2 | AI12: 1 | AJ12: 1 | AK12: 7 | AL12: 5 | AM12: 2 | AN12: 5 | AO12: 5 | AP12: 0 | AQ12: 1 | AR12: 1 | AS12: 0 | AT12: 9 | AU12: 6 | AV12: 3 | AW12: 1 | AX12: 1 | AY12: 0
C13: 갈현2동 | D13: =SUM(G13,J13,M13,P13,S13,V13,Y13,AB13,AE13,AH13,AK13,AN13,AQ13,AT13,AW13) -> 1208 | E13: =SUM(H13,K13,N13,Q13,T13,W13,Z13,AC13,AF13,AI13,AL13,AO13,AR13,AU13,AX13) -> 709 | F13: =SUM(I13,L13,O13,R13,U13,X13,AA13,AD13,AG13,AJ13,AM13,AP13,AS13,AV13,AY13) -> 499 | G13: 551 | H13: 311 | I13: 240 | J13: 138 | K13: 92 | L13: 46 | M13: 160 | N13: 95 | O13: 65 | P13: 13 | Q13: 12 | R13: 1 | S13: 89 | T13: 56 | U13: 33 | V13: 110 | W13: 63 | X13: 47 | Y13: 14 | Z13: 12 | AA13: 2 | AB13: 51 | AC13: 21 | AD13: 30 | AE13: 56 | AF13: 29 | AG13: 27 | AH13: 3 | AI13: 1 | AJ13: 2 | AK13: 6 | AL13: 6 | AM13: 0 | AN13: 8 | AO13: 6 | AP13: 2 | AQ13: 0 | AR13: 0 | AS13: 0 | AT13: 7 | AU13: 4 | AV13: 3 | AW13: 2 | AX13: 1 | AY13: 1
C14: 구산동 | D14: 2301 | E14: 1640 | F14: 661 | G14: 713 | H14: 431 | I14: 282 | J14: 155 | K14: 101 | L14: 54 | M14: 226 | N14: 130 | O14: 96 | P14: 14 | Q14: 10 | R14: 4 | S14: 431 | T14: 335 | U14: 96 | V14: 256 | W14: 196 | X14: 60 | Y14: 31 | Z14: 28 | AA14: 3 | AB14: 332 | AC14: 303 | AD14: 29 | AE14: 66 | AF14: 48 | AG14: 18 | AH14: 3 | AI14: 1 | AJ14: 2 | AK14: 38 | AL14: 29 | AM14: 9 | AN14: 6 | AO14: 5 | AP14: 1 | AQ14: 1 | AR14: 1 | AS14: 0 | AT14: 22 | AU14: 17 | AV14: 5 | AW14: 7 | AX14: 5 | AY14: 2
C15: 대조동 | D15: =SUM(G15,J15,M15,P15,S15,V15,Y15,AB15,AE15,AH15,AK15,AN15,AQ15,AT15,AW15) -> 1439 | E15: 815 | F15: 624 | G15: 649 | H15: 347 | I15: 302 | J15: 163 | K15: 95 | L15: 68 | M15: 207 | N15: 117 | O15: 90 | P15: 14 | Q15: 13 | R15: 1 | S15: 85 | T15: 55 | U15: 30 | V15: 150 | W15: 89 | X15: 61 | Y15: 12 | Z15: 11 | AA15: 1 | AB15: 70 | AC15: 36 | AD15: 34 | AE15: 59 | AF15: 33 | AG15: 26 | AH15: 0 | AI15: 0 | AJ15: 0 | AK15: 6 | AL15: 4 | AM15: 2 | AN15: 8 | AO15: 7 | AP15: 1 | AQ15: 1 | AR15: 1 | AS15: 0 | AT15: 10 | AU15: 5 | AV15: 5 | AW15: 5 | AX15: 2 | AY15: 3
C16: 응암1동 | D16: 1155 | E16: 633 | F16: 522 | G16: 512 | H16: 275 | I16: 237 | J16: 135 | K16: 79 | L16: 56 | M16: 185 | N16: 90 | O16: 95 | P16: 5 | Q16: 4 | R16: 1 | S16: 63 | T16: 33 | U16: 30 | V16: 124 | W16: 80 | X16: 44 | Y16: 13 | Z16: 12 | AA16: 1 | AB16: 51 | AC16: 28 | AD16: 23 | AE16: 42 | AF16: 17 | AG16: 25 | AH16: 3 | AI16: 2 | AJ16: 1 | AK16: 3 | AL16: 3 | AM16: 0 | AN16: 8 | AO16: 4 | AP16: 4 | AQ16: 1 | AR16: 0 | AS16: 1 | AT16: 8 | AU16: 5 | AV16: 3 | AW16: 2 | AX16: 1 | AY16: 1
C17: 응암2동 | D17: 760 | E17: 450 | F17: 310 | G17: 336 | H17: 195 | I17: 141 | J17: 91 | K17: 53 | L17: 38 | M17: 98 | N17: 53 | O17: 45 | P17: 8 | Q17: 7 | R17: 1 | S17: 48 | T17: 31 | U17: 17 | V17: 81 | W17: 48 | X17: 33 | Y17: 18 | Z17: 15 | AA17: 3 | AB17: 32 | AC17: 20 | AD17: 12 | AE17: 26 | AF17: 15 | AG17: 11 | AH17: 1 | AI17: 0 | AJ17: 1 | AK17: 6 | AL17: 4 | AM17: 2 | AN17: 3 | AO17: 2 | AP17: 1 | AQ17: 1 | AR17: 0 | AS17: 1 | AT17: 8 | AU17: 4 | AV17: 4 | AW17: 3 | AX17: 3 | AY17: 0
C18: 응암3동 | D18: 1336 | E18: 774 | F18: 562 | G18: 584 | H18: 325 | I18: 259 | J18: 143 | K18: 85 | L18: 58 | M18: 201 | N18: 114 | O18: 87 | P18: 13 | Q18: 8 | R18: 5 | S18: 89 | T18: 62 | U18: 27 | V18: 136 | W18: 78 | X18: 58 | Y18: 14 | Z18: 11 | AA18: 3 | AB18: 62 | AC18: 33 | AD18: 29 | AE18: 56 | AF18: 39 | AG18: 17 | AH18: 6 | AI18: 3 | AJ18: 3 | AK18: 10 | AL18: 7 | AM18: 3 | AN18: 5 | AO18: 2 | AP18: 3 | AQ18: 3 | AR18: 2 | AS18: 1 | AT18: 9 | AU18: 4 | AV18: 5 | AW18: 5 | AX18: 1 | AY18: 4
C19: 역촌동 | D19: 2110 | E19: 1167 | F19: 943 | G19: 950 | H19: 505 | I19: 445 | J19: 220 | K19: 135 | L19: 85 | M19: 279 | N19: 147 | O19: 132 | P19: 17 | Q19: 12 | R19: 5 | S19: 174 | T19: 100 | U19: 74 | V19: 225 | W19: 128 | X19: 97 | Y19: 26 | Z19: 23 | AA19: 3 | AB19: 92 | AC19: 44 | AD19: 48 | AE19: 79 | AF19: 42 | AG19: 37 | AH19: 5 | AI19: 4 | AJ19: 1 | AK19: 16 | AL19: 10 | AM19: 6 | AN19: 6 | AO19: 4 | AP19: 2 | AQ19: 3 | AR19: 3 | AS19: 0 | AT19: 13 | AU19: 7 | AV19: 6 | AW19: 5 | AX19: 3 | AY19: 2
C20: 신사1동 | D20: 1217 | E20: 722 | F20: 495 | G20: 554 | H20: 319 | I20: 235 | J20: 143 | K20: 82 | L20: 61 | M20: 163 | N20: 93 | O20: 70 | P20: 12 | Q20: 8 | R20: 4 | S20: 108 | T20: 73 | U20: 35 | V20: 116 | W20: 69 | X20: 47 | Y20: 11 | Z20: 6 | AA20: 5 | AB20: 47 | AC20: 28 | AD20: 19 | AE20: 28 | AF20: 24 | AG20: 4 | AH20: 2 | AI20: 2 | AJ20: 0 | AK20: 5 | AL20: 2 | AM20: 3 | AN20: 9 | AO20: 7 | AP20: 2 | AQ20: 4 | AR20: 2 | AS20: 2 | AT20: 11 | AU20: 6 | AV20: 5 | AW20: 4 | AX20: 1 | AY20: 3
C21: 신사2동 | D21: 977 | E21: 571 | F21: 406 | G21: 460 | H21: 261 | I21: 199 | J21: 101 | K21: 64 | L21: 37 | M21: 125 | N21: 70 | O21: 55 | P21: 5 | Q21: 4 | R21: 1 | S21: 81 | T21: 46 | U21: 35 | V21: 84 | W21: 47 | X21: 37 | Y21: 16 | Z21: 14 | AA21: 2 | AB21: 33 | AC21: 16 | AD21: 17 | AE21: 45 | AF21: 31 | AG21: 14 | AH21: 2 | AI21: 1 | AJ21: 1 | AK21: 6 | AL21: 5 | AM21: 1 | AN21: 6 | AO21: 5 | AP21: 1 | AQ21: 0 | AR21: 0 | AS21: 0 | AT21: 9 | AU21: 4 | AV21: 5 | AW21: 4 | AX21: 3 | AY21: 1
C22: 증산동 | D22: 711 | E22: 413 | F22: 298 | G22: 321 | H22: 171 | I22: 150 | J22: 76 | K22: 51 | L22: 25 | M22: 90 | N22: 53 | O22: 37 | P22: 4 | Q22: 3 | R22: 1 | S22: 47 | T22: 30 | U22: 17 | V22: 72 | W22: 44 | X22: 28 | Y22: 11 | Z22: 10 | AA22: 1 | AB22: 28 | AC22: 13 | AD22: 15 | AE22: 37 | AF22: 21 | AG22: 16 | AH22: 1 | AI22: 1 | AJ22: 0 | AK22: 4 | AL22: 3 | AM22: 1 | AN22: 9 | AO22: 7 | AP22: 2 | AQ22: 2 | AR22: 0 | AS22: 2 | AT22: 7 | AU22: 5 | AV22: 2 | AW22: 2 | AX22: 1 | AY22: 1
C23: 수색동 | D23: 594 | E23: 341 | F23: 253 | G23: 263 | H23: 142 | I23: 121 | J23: 73 | K23: 43 | L23: 30 | M23: 76 | N23: 44 | O23: 32 | P23: 5 | Q23: 5 | R23: 0 | S23: 46 | T23: 32 | U23: 14 | V23: 57 | W23: 29 | X23: 28 | Y23: 10 | Z23: 9 | AA23: 1 | AB23: 26 | AC23: 12 | AD23: 14 | AE23: 19 | AF23: 13 | AG23: 6 | AH23: 3 | AI23: 0 | AJ23: 3 | AK23: 4 | AL23: 2 | AM23: 2 | AN23: 6 | AO23: 5 | AP23: 1 | AQ23: 1 | AR23: 1 | AS23: 0 | AT23: 4 | AU23: 3 | AV23: 1 | AW23: 1 | AX23: 1 | AY23: 0
C24: 진관동 | D24: 1906 | E24: 1070 | F24: 836 | G24: 854 | H24: 457 | I24: 397 | J24: 208 | K24: 116 | L24: 92 | M24: 277 | N24: 137 | O24: 140 | P24: 13 | Q24: 10 | R24: 3 | S24: 104 | T24: 66 | U24: 38 | V24: 237 | W24: 151 | X24: 86 | Y24: 48 | Z24: 40 | AA24: 8 | AB24: 49 | AC24: 25 | AD24: 24 | AE24: 62 | AF24: 34 | AG24: 28 | AH24: 8 | AI24: 4 | AJ24: 4 | AK24: 6 | AL24: 4 | AM24: 2 | AN24: 21 | AO24: 16 | AP24: 5 | AQ24: 2 | AR24: 0 | AS24: 2 | AT24: 12 | AU24: 8 | AV24: 4 | AW24: 5 | AX24: 2 | AY24: 3

Sheet 등급별
B2: 은평구 동별 장애인현황(등급별)
W3: (단위 : 명)
B4: 자치구 | C4: 동 | D4: 합계 | G4: 1급 | J4: 2급 | M4: 3급 | P4: 4급 | S4: 5급 | V4: 6급
D5: 계 | E5: 남자 | F5: 여자 | G5: 계 | H5: 남자 | I5: 여자 | J5: 계 | K5: 남자 | L5: 여자 | M5: 계 | N5: 남자 | O5: 여자 | P5: 계 | Q5: 남자 | R5: 여자 | S5: 계 | T5: 남자 | U5: 여자 | V5: 계 | W5: 남자 | X5: 여자
B6: 은평구 | C6: 합 계 | D6: =SUM(G6,J6,M6,P6,S6,V6) -> 21531 | E6: =SUM(H6,K6,N6,Q6,T6,W6) -> 12631 | F6: =SUM(I6,L6,O6,R6,U6,X6) -> 8900 | G6: =SUM(G7:G22) -> 1873 | H6: =SUM(H7:H22) -> 1197 | I6: 676 | J6: 2978 | K6: 1866 | L6: 1112 | M6: 3499 | N6: 2177 | O6: 1322 | P6: 3140 | Q6: 1631 | R6: 1509 | S6: 4554 | T6: 2406 | U6: 2148 | V6: 5487 | W6: 3354 | X6: 2133
C7: 녹번동 | D7: =SUM(G7,J7,M7,P7,S7,V7) -> 1528 | E7: =SUM(H7,K7,N7,Q7,T7,W7) -> 889 | F7: =SUM(I7,L7,O7,R7,U7,X7) -> 639 | G7: 110 | H7: 68 | I7: 42 | J7: 169 | K7: 104 | L7: 65 | M7: 238 | N7: 147 | O7: 91 | P7: 239 | Q7: 129 | R7: 110 | S7: 343 | T7: 167 | U7: 176 | V7: 429 | W7: 274 | X7: 155
C8: 불광1동 | D8: 1682 | E8: 934 | F8: 748 | G8: 134 | H8: 66 | I8: 68 | J8: 220 | K8: 122 | L8: 98 | M8: 257 | N8: 153 | O8: 104 | P8: 244 | Q8: 128 | R8: 116 | S8: 398 | T8: 199 | U8: 199 | V8: 429 | W8: 266 | X8: 163
C9: 불광2동 | D9: 1492 | E9: 864 | F9: 628 | G9: 92 | H9: 49 | I9: 43 | J9: 193 | K9: 116 | L9: 77 | M9: 232 | N9: 146 | O9: 86 | P9: 241 | Q9: 123 | R9: 118 | S9: 311 | T9: 165 | U9: 146 | V9: 423 | W9: 265 | X9: 158
C10: 갈현1동 | D10: 1115 | E10: 639 | F10: 476 | G10: 67 | H10: 43 | I10: 24 | J10: 141 | K10: 81 | L10: 60 | M10: 204 | N10: 114 | O10: 90 | P10: 165 | Q10: 77 | R10: 88 | S10: 238 | T10: 135 | U10: 103 | V10: 300 | W10: 189 | X10: 111
C11: 갈현2동 | D11: 1208 | E11: 709 | F11: 499 | G11: 86 | H11: 50 | I11: 36 | J11: 154 | K11: 82 | L11: 72 | M11: 206 | N11: 129 | O11: 77 | P11: 192 | Q11: 110 | R11: 82 | S11: 256 | T11: 147 | U11: 109 | V11: 314 | W11: 191 | X11: 123
C12: 구산동 | D12: 2301 | E12: 1640 | F12: 661 | G12: 429 | H12: 364 | I12: 65 | J12: 514 | K12: 403 | L12: 111 | M12: 403 | N12: 292 | O12: 111 | P12: 238 | Q12: 154 | R12: 84 | S12: 327 | T12: 194 | U12: 133 | V12: 390 | W12: 233 | X12: 157
C13: 대조동 | D13: 1439 | E13: 815 | F13: 624 | G13: 97 | H13: 56 | I13: 41 | J13: 180 | K13: 111 | L13: 69 | M13: 231 | N13: 143 | O13: 88 | P13: 223 | Q13: 115 | R13: 108 | S13: 317 | T13: 162 | U13: 155 | V13: 391 | W13: 228 | X13: 163
C14: 응암1동 | D14: 1155 | E14: 633 | F14: 522 | G14: 85 | H14: 47 | I14: 38 | J14: 153 | K14: 78 | L14: 75 | M14: 182 | N14: 105 | O14: 77 | P14: 165 | Q14: 79 | R14: 86 | S14: 246 | T14: 133 | U14: 113 | V14: 324 | W14: 191 | X14: 133
C15: 응암2동 | D15: 760 | E15: 450 | F15: 310 | G15: 54 | H15: 33 | I15: 21 | J15: 107 | K15: 70 | L15: 37 | M15: 125 | N15: 80 | O15: 45 | P15: 118 | Q15: 65 | R15: 53 | S15: 168 | T15: 95 | U15: 73 | V15: 188 | W15: 107 | X15: 81
C16: 응암3동 | D16: 1336 | E16: 774 | F16: 562 | G16: 87 | H16: 51 | I16: 36 | J16: 163 | K16: 103 | L16: 60 | M16: 207 | N16: 135 | O16: 72 | P16: 211 | Q16: 118 | R16: 93 | S16: 324 | T16: 155 | U16: 169 | V16: 344 | W16: 212 | X16: 132
C17: 역촌동 | D17: 2110 | E17: 1167 | F17: 943 | G17: 167 | H17: 86 | I17: 81 | J17: 278 | K17: 162 | L17: 116 | M17: 348 | N17: 199 | O17: 149 | P17: 336 | Q17: 166 | R17: 170 | S17: 439 | T17: 217 | U17: 222 | V17: 542 | W17: 337 | X17: 205
C18: 신사1동 | D18: 1217 | E18: 722 | F18: 495 | G18: 98 | H18: 52 | I18: 46 | J18: 152 | K18: 101 | L18: 51 | M18: 180 | N18: 126 | O18: 54 | P18: 179 | Q18: 86 | R18: 93 | S18: 263 | T18: 148 | U18: 115 | V18: 345 | W18: 209 | X18: 136
C19: 신사2동 | D19: 977 | E19: 571 | F19: 406 | G19: 72 | H19: 42 | I19: 30 | J19: 141 | K19: 85 | L19: 56 | M19: 151 | N19: 95 | O19: 56 | P19: 148 | Q19: 70 | R19: 78 | S19: 222 | T19: 123 | U19: 99 | V19: 243 | W19: 156 | X19: 87
C20: 증산동 | D20: 711 | E20: 413 | F20: 298 | G20: 52 | H20: 35 | I20: 17 | J20: 103 | K20: 66 | L20: 37 | M20: 112 | N20: 64 | O20: 48 | P20: 106 | Q20: 57 | R20: 49 | S20: 151 | T20: 72 | U20: 79 | V20: 187 | W20: 119 | X20: 68
C21: 수색동 | D21: 594 | E21: 341 | F21: 253 | G21: 44 | H21: 30 | I21: 14 | J21: 86 | K21: 52 | L21: 34 | M21: 92 | N21: 52 | O21: 40 | P21: 84 | Q21: 41 | R21: 43 | S21: 135 | T21: 74 | U21: 61 | V21: 153 | W21: 92 | X21: 61
C22: 진관동 | D22: 1906 | E22: 1070 | F22: 836 | G22: 199 | H22: 125 | I22: 74 | J22: 224 | K22: 130 | L22: 94 | M22: 331 | N22: 197 | O22: 134 | P22: 251 | Q22: 113 | R22: 138 | S22: 416 | T22: 220 | U22: 196 | V22: 485 | W22: 285 | X22: 200

Sheet 연령별
B2: 은평구 동별 장애인현황(연령별)
AF4: (단위 : 명)
B5: 자치구 | C5: 동 | D5: 합계 | G5: 9세이하 | J5: 10~19세 | M5: 20~29세 | P5: 30~39세 | S5: 40~49세 | V5: 50~59세 | Y5: 60~69세 | AB5: 70~79세 | AE5: 80세이상
D6: 계 | E6: 남자 | F6: 여자 | G6: 계 | H6: 남자 | I6: 여자 | J6: 계 | K6: 남자 | L6: 여자 | M6: 계 | N6: 남자 | O6: 여자 | P6: 계 | Q6: 남자 | R6: 여자 | S6: 계 | T6: 남자 | U6: 여자 | V6: 계 | W6: 남자 | X6: 여자 | Y6: 계 | Z6: 남자 | AA6: 여자 | AB6: 계 | AC6: 남자 | AD6: 여자 | AE6: 계 | AF6: 남자 | AG6: 여자
B7: 은평구 | C7: 합 계 | D7: =SUM(G7,J7,M7,P7,S7,V7,Y7,AB7,AE7) -> 21531 | E7: =SUM(H7,K7,N7,Q7,T7,W7,Z7,AC7,AF7) -> 12631 | F7: =D7-E7 -> 8900 | G7: =SUM(G8:G23) -> 270 | H7: =SUM(H8:H23) -> 173 | I7: 97 | J7: 557 | K7: 358 | L7: 199 | M7: 855 | N7: 561 | O7: 294 | P7: 1128 | Q7: 769 | R7: 359 | S7: 2189 | T7: 1565 | U7: 624 | V7: 3765 | W7: 2589 | X7: 1176 | Y7: 4698 | Z7: 2833 | AA7: 1865 | AB7: 5175 | AC7: 2622 | AD7: 2553 | AE7: 2894 | AF7: 1161 | AG7: 1733
C8: 녹번동 | D8: =SUM(G8,J8,M8,P8,S8,V8,Y8,AB8,AE8) -> 1528 | E8: =SUM(H8,K8,N8,Q8,T8,W8,Z8,AC8,AF8) -> 889 | F8: =D8-E8 -> 639 | G8: 13 | H8: 7 | I8: 6 | J8: 26 | K8: 18 | L8: 8 | M8: 64 | N8: 37 | O8: 27 | P8: 62 | Q8: 43 | R8: 19 | S8: 140 | T8: 102 | U8: 38 | V8: 263 | W8: 201 | X8: 62 | Y8: 332 | Z8: 201 | AA8: 131 | AB8: 409 | AC8: 198 | AD8: 211 | AE8: 219 | AF8: 82 | AG8: 137
C9: 불광1동 | D9: 1682 | E9: 934 | F9: =D9-E9 -> 748 | G9: 17 | H9: 11 | I9: 6 | J9: 37 | K9: 21 | L9: 16 | M9: 55 | N9: 37 | O9: 18 | P9: 93 | Q9: 62 | R9: 31 | S9: 156 | T9: 109 | U9: 47 | V9: 249 | W9: 149 | X9: 100 | Y9: 353 | Z9: 213 | AA9: 140 | AB9: 426 | AC9: 198 | AD9: 228 | AE9: 296 | AF9: 134 | AG9: 162
C10: 불광2동 | D10: 1492 | E10: 864 | F10: 628 | G10: 15 | H10: 10 | I10: 5 | J10: 38 | K10: 32 | L10: 6 | M10: 63 | N10: 44 | O10: 19 | P10: 63 | Q10: 43 | R10: 20 | S10: 142 | T10: 90 | U10: 52 | V10: 269 | W10: 182 | X10: 87 | Y10: 355 | Z10: 204 | AA10: 151 | AB10: 336 | AC10: 173 | AD10: 163 | AE10: 211 | AF10: 86 | AG10: 125
C11: 갈현1동 | D11: 1115 | E11: 639 | F11: 476 | G11: 11 | H11: 9 | I11: 2 | J11: 21 | K11: 12 | L11: 9 | M11: 47 | N11: 28 | O11: 19 | P11: 52 | Q11: 33 | R11: 19 | S11: 123 | T11: 84 | U11: 39 | V11: 219 | W11: 147 | X11: 72 | Y11: 256 | Z11: 149 | AA11: 107 | AB11: 244 | AC11: 120 | AD11: 124 | AE11: 142 | AF11: 57 | AG11: 85
C12: 갈현2동 | D12: 1208 | E12: 709 | F12: 499 | G12: 14 | H12: 11 | I12: 3 | J12: 27 | K12: 18 | L12: 9 | M12: 59 | N12: 36 | O12: 23 | P12: 51 | Q12: 38 | R12: 13 | S12: 128 | T12: 81 | U12: 47 | V12: 228 | W12: 161 | X12: 67 | Y12: 247 | Z12: 145 | AA12: 102 | AB12: 297 | AC12: 154 | AD12: 143 | AE12: 157 | AF12: 65 | AG12: 92
C13: 구산동 | D13: 2301 | E13: 1640 | F13: 661 | G13: 24 | H13: 10 | I13: 14 | J13: 83 | K13: 40 | L13: 43 | M13: 97 | N13: 70 | O13: 27 | P13: 129 | Q13: 98 | R13: 31 | S13: 300 | T13: 258 | U13: 42 | V13: 513 | W13: 416 | X13: 97 | Y13: 501 | Z13: 380 | AA13: 121 | AB13: 433 | AC13: 269 | AD13: 164 | AE13: 221 | AF13: 99 | AG13: 122
C14: 대조동 | D14: 1439 | E14: 815 | F14: 624 | G14: 17 | H14: 11 | I14: 6 | J14: 24 | K14: 16 | L14: 8 | M14: 59 | N14: 38 | O14: 21 | P14: 80 | Q14: 54 | R14: 26 | S14: 145 | T14: 97 | U14: 48 | V14: 249 | W14: 157 | X14: 92 | Y14: 316 | Z14: 192 | AA14: 124 | AB14: 354 | AC14: 178 | AD14: 176 | AE14: 195 | AF14: 72 | AG14: 123
C15: 응암1동 | D15: 1155 | E15: 633 | F15: 522 | G15: 20 | H15: 10 | I15: 10 | J15: 33 | K15: 18 | L15: 15 | M15: 43 | N15: 24 | O15: 19 | P15: 71 | Q15: 52 | R15: 19 | S15: 112 | T15: 82 | U15: 30 | V15: 179 | W15: 123 | X15: 56 | Y15: 244 | Z15: 132 | AA15: 112 | AB15: 288 | AC15: 137 | AD15: 151 | AE15: 165 | AF15: 55 | AG15: 110
C16: 응암2동 | D16: 760 | E16: 450 | F16: 310 | G16: 24 | H16: 18 | I16: 6 | J16: 25 | K16: 12 | L16: 13 | M16: 26 | N16: 19 | O16: 7 | P16: 32 | Q16: 24 | R16: 8 | S16: 84 | T16: 66 | U16: 18 | V16: 116 | W16: 78 | X16: 38 | Y16: 177 | Z16: 108 | AA16: 69 | AB16: 184 | AC16: 81 | AD16: 103 | AE16: 92 | AF16: 44 | AG16: 48
C17: 응암3동 | D17: 1336 | E17: 774 | F17: 562 | G17: 8 | H17: 5 | I17: 3 | J17: 30 | K17: 20 | L17: 10 | M17: 36 | N17: 28 | O17: 8 | P17: 69 | Q17: 49 | R17: 20 | S17: 121 | T17: 83 | U17: 38 | V17: 235 | W17: 154 | X17: 81 | Y17: 286 | Z17: 174 | AA17: 112 | AB17: 353 | AC17: 179 | AD17: 174 | AE17: 198 | AF17: 82 | AG17: 116
C18: 역촌동 | D18: 2110 | E18: 1167 | F18: 943 | G18: 28 | H18: 18 | I18: 10 | J18: 59 | K18: 42 | L18: 17 | M18: 83 | N18: 54 | O18: 29 | P18: 133 | Q18: 87 | R18: 46 | S18: 203 | T18: 135 | U18: 68 | V18: 370 | W18: 230 | X18: 140 | Y18: 487 | Z18: 269 | AA18: 218 | AB18: 502 | AC18: 250 | AD18: 252 | AE18: 245 | AF18: 82 | AG18: 163
C19: 신사1동 | D19: 1217 | E19: 722 | F19: 495 | G19: 15 | H19: 10 | I19: 5 | J19: 31 | K19: 18 | L19: 13 | M19: 56 | N19: 37 | O19: 19 | P19: 73 | Q19: 49 | R19: 24 | S19: 136 | T19: 100 | U19: 36 | V19: 224 | W19: 150 | X19: 74 | Y19: 238 | Z19: 138 | AA19: 100 | AB19: 301 | AC19: 160 | AD19: 141 | AE19: 143 | AF19: 60 | AG19: 83
C20: 신사2동 | D20: 977 | E20: 571 | F20: 406 | G20: 16 | H20: 13 | I20: 3 | J20: 28 | K20: 16 | L20: 12 | M20: 43 | N20: 25 | O20: 18 | P20: 52 | Q20: 34 | R20: 18 | S20: 81 | T20: 56 | U20: 25 | V20: 172 | W20: 120 | X20: 52 | Y20: 219 | Z20: 139 | AA20: 80 | AB20: 240 | AC20: 119 | AD20: 121 | AE20: 126 | AF20: 49 | AG20: 77
C21: 증산동 | D21: 711 | E21: 413 | F21: 298 | G21: 10 | H21: 7 | I21: 3 | J21: 13 | K21: 11 | L21: 2 | M21: 29 | N21: 18 | O21: 11 | P21: 34 | Q21: 22 | R21: 12 | S21: 66 | T21: 46 | U21: 20 | V21: 122 | W21: 75 | X21: 47 | Y21: 162 | Z21: 94 | AA21: 68 | AB21: 184 | AC21: 101 | AD21: 83 | AE21: 91 | AF21: 39 | AG21: 52
C22: 수색동 | D22: 594 | E22: 341 | F22: 253 | G22: 2 | H22: 2 | I22: 0 | J22: 14 | K22: 11 | L22: 3 | M22: 25 | N22: 17 | O22: 8 | P22: 29 | Q22: 18 | R22: 11 | S22: 42 | T22: 32 | U22: 10 | V22: 92 | W22: 72 | X22: 20 | Y22: 144 | Z22: 84 | AA22: 60 | AB22: 166 | AC22: 73 | AD22: 93 | AE22: 80 | AF22: 32 | AG22: 48
C23: 진관동 | D23: 1906 | E23: 1070 | F23: 836 | G23: 36 | H23: 21 | I23: 15 | J23: 68 | K23: 53 | L23: 15 | M23: 70 | N23: 49 | O23: 21 | P23: 105 | Q23: 63 | R23: 42 | S23: 210 | T23: 144 | U23: 66 | V23: 265 | W23: 174 | X23: 91 | Y23: 381 | Z23: 211 | AA23: 170 | AB23: 458 | AC23: 232 | AD23: 226 | AE23: 313 | AF23: 123 | AG23: 190
